Cogmind - Beta 16.1 @@@ ROGUE MODE // 2026.04.30 @ 13:14:50 Player: ChromeKnight Result: Destroyed by FI-GWF(R) with Subdweller Laser Performance ------------- Evolutions (0) 0 Regions Visited (2) 400 Robots Destroyed (16) 80 Value Destroyed (553) 553 Prototype IDs (13) 260 Alien Tech Used (0) 0 Bonus (0) 0 TOTAL SCORE: 1293 Bonus ------- None Cogmind --------- Core Integrity 0/250 Matter 270/300 Energy 199/200 System Corruption 0% Temperature Cool (6) Movement Rolling (125) Ox3 Location -10/Subcaves Parts ------- > --- POWER (1) -------- Subdweller Power Source > --- PROPULSION (2) --- Spiked Treads Wheel > --- UTILITY (2) ------ Scrap Shield > --- WEAPON (2) ------- Subdweller Beam Cannon Barrage Gun > --- INVENTORY (5) ---- Wheel Rainbow Chip Small Laser Peak State ------------ > --- POWER ------------ Subdweller Power Source > --- PROPULSION ------- Spiked Treads Wheel > --- UTILITY ---------- High-capacity Storage Unit > --- WEAPON ----------- Subdweller Beam Cannon Barrage Gun > --- INVENTORY -------- Wheel Wheel Heat Sink Small Storage Unit Large Storage Unit Light Armor Plating Light Armor Plating Scrap Shield Power Bank Rainbow Chip Medium Laser Small Laser Small Laser Subdweller Laser Subdweller Shrapnel Launcher [Rating: 15] Favorites ----------- Power Ion Engine Engine Ion Engine Propulsion Light Treads Treads Light Treads Wheel Wheel Utility High-capacity Storage Unit Storage High-capacity Storage Unit Protection Light Armor Plating Weapon Medium Laser Energy Gun Medium Laser Energy Cannon Subdweller Beam Cannon Ballistic Gun Barrage Gun Build | -11 -10 -10 ------- Run | Yrd Mat Sub Slots Evolved . | . . . Power . | . . . Propulsion . | . . . Utility . | . . . Weapon . | . . . Parts Attached 18 | 6 3 9 Power 2 | 1 . 1 Engine 2 | 1 . 1 Core . | . . . Reactor . | . . . Propulsion 4 | 2 . 2 Treads 3 | 2 . 1 Leg . | . . . Wheel 1 | . . 1 Hover . | . . . Flight . | . . . Utility 6 | 1 3 2 Device . | . . . Storage 3 | 1 2 . Processor . | . . . Hackware . | . . . Protection 3 | . 1 2 Artifact . | . . . Weapon 6 | 2 . 4 Energy Gun 4 | 2 . 2 Energy Cannon 1 | . . 1 Ballistic Gun 1 | . . 1 Ballistic Cannon . | . . . Launcher . | . . . Special Weapon . | . . . Impact Weapon . | . . . Slashing Weapon . | . . . Piercing Weapon . | . . . Special Melee Weapon . | . . . Unidentified Prototypes . | . . . Parts Lost 8 | . . 8 Power 1 | . . 1 Propulsion 2 | . . 2 Utility 2 | . . 2 Weapon 3 | . . 3 Highest Loss Streak 3 | . . 3 To Critical Strikes . | . . . Average Backups 9 | . 5 12 Power . | . . . Propulsion 2 | . 2 2 Utility 4 | . 1 6 Weapon 2 | . 1 3 Tool/Special . | . . . Unused Backups 11 | . . 11 Power . | . . . Propulsion 2 | . . 2 Utility 5 | . . 5 Weapon 4 | . . 4 Tool/Special . | . . . Average Slot Usage (%) 91 | . 92 90 Engine 12 | . 14 11 Treads 22 | . 28 19 Wheel 3 | . . 6 Storage 14 | . 14 14 Protection 8 | . 7 9 Energy Gun 21 | . 28 17 Energy Cannon 3 | . . 4 Ballistic Gun 3 | . . 5 Peak Build Rating 15 | 6 8 15 Average Rating 9 | 3 6 10 On Entrance 4 | . 6 8 Avg Prop Armor Cover (%) 14 | . . 14 Naked Turns . | . . . Heaviest Build 56 | 14 52 56 Greatest Support 40 | 40 40 40 Greatest Overweight (x) 5 | . 1 5 Average Overweight (x) 2 | . . 3 Largest Inventory Capacity 20 | 8 20 20 Average Capacity 15 | 6 8 19 Most Carried 16 | . 10 16 Average Carried 10 | . 5 12 Final Capacity 20 | 8 20 5 Final Carried 10 | . 10 3 Class Distribution -------------------- 100% | Mutant Dominant Class ---------------- Mutant | -10/Materials Mutant | -10/Subcaves Resources | -11 -10 -10 ----------- Run | Yrd Mat Sub Matter Collected 406 | 260 10 136 Remotely . | . . . Salvage Created 634 | 84 180 370 Parts 38 | 3 13 22 Haulers Intercepted . | . . . Recyclers Shooed . | . . . Parts Field Recycled . | . . . Retrieved Matter . | . . . Parts Self-Destructed 11 | . . 11 Prevented . | . . . Parts Restored . | . . . Kills | -11 -10 -10 ------- Run | Yrd Mat Sub Combat Hostiles Destroyed 15 | . 5 10 Guns 10 | . 5 5 Cannons 4 | . . 4 AOE 1 | . . 1 Classes Destroyed 4 | 1 2 1 Recycler 1 | 1 . . Swarmer 1 | . 1 . Grunt 6 | . 4 2 Subdweller 8 | . . 8 Best Kill Streak 3 | 1 2 3 Combat Bots Only 3 | . 2 3 Max Kills in Single Turn 1 | 1 1 1 Gunslinging . | . . . Exploded 1 | . . 1 Melee . | . . . Uniques/NPCs Destroyed . | . . . Combat | -11 -10 -10 -------- Run | Yrd Mat Sub Hostile Shots Fired 74 | . 13 61 Missed 22 | . 4 18 Hits 52 | . 9 43 Projectile 52 | . 9 43 AOE 7 | . . 7 Critical Strikes 1 | . . 1 Damage Taken 1337 | . 94 1243 Core 263 | . 22 241 Absorbed by Shields . | . . . Core Remaining (%) 100 | 100 . . Volleys Fired 68 | 2 20 46 Largest 2 | 2 2 2 Hottest 110 | 90 90 110 Shots Fired 131 | 4 40 87 Gun 122 | 4 40 78 Cannon 9 | . . 9 Launcher . | . . . Special . | . . . Kinetic 19 | . . 19 Thermal 80 | 2 20 58 Explosive . | . . . Electromagnetic 32 | 2 20 10 Robot Hit Streak 16 | 1 8 16 Robot Miss Streak 3 | 2 3 3 Penetration Max . | . . . Secondary Targets 1 | . . 1 Max Gunslinging Chain 1 | . . 1 Shots Hit Robots 82 | 1 22 59 Core Hits 30 | 1 9 20 Critical Kills . | . . . Critical Parts Destroyed . | . . . Critical Strikes 2 | . 1 1 Burn 2 | . 1 1 Melee Attacks . | . . . Impact . | . . . Slashing . | . . . Piercing . | . . . Sneak Attacks . | . . . Combat Hostiles . | . . . Follow-up Attacks . | . . . Damage Inflicted 1428 | 15 347 1066 Guns 1126 | 15 347 764 Cannons 190 | . . 190 Explosions 112 | . . 112 Melee . | . . . Ramming . | . . . Kinetic 208 | . . 208 Thermal 915 | . 138 777 Explosive . | . . . Electromagnetic 305 | 15 209 81 Impact . | . . . Slashing . | . . . Piercing . | . . . Highest Corruption . | . . . Average Corruption . | . . . Corruption Purged . | . . . Corruption Blocked . | . . . Overload Shots . | . . . Overflow Damage 12 | . . 12 Projectiles . | . . . Explosions 12 | . . 12 Melee . | . . . Knockbacks . | . . . Impact . | . . . Kinetic . | . . . Secondary . | . . . Self-Inflicted Damage 96 | . . 96 Shots 2 | . . 2 Rammed . | . . . Targets Rammed . | . . . Kicked . | . . . Crushed . | . . . Highest Temperature 249 | 60 102 249 Average Temperature 34 | 30 40 26 Received Heat Transfer 583 | . 42 541 Siege Activations . | . . . Martial Activations . | . . . Shielding Activations . | . . . Robots Disrupted . | . . . Combat Hostiles . | . . . Robots Corrupted . | . . . Combat Hostiles . | . . . Parts Fried . | . . . Impact Corruptions . | . . . Robots Melted . | . . . Combat Hostiles . | . . . Parts Melted 2 | . . 2 Heat Transferred 1932 | . 481 1451 Parts Sabotaged . | . . . Parts Stolen . | . . . Parts Stripped . | . . . Power Chain Reactions 2 | . . 2 Alert | -11 -10 -10 ------- Run | Yrd Mat Sub Maximum Alert Level . | . . . Low Security (%) 100 | 100 100 . Level 1 . | . . . Level 2 . | . . . Level 3 . | . . . Level 4 . | . . . Level 5 . | . . . High Security . | . . . Max Security . | . . . Peak Influence 63 | 5 63 . Initial . | . . . Average 7 | . 8 . Influence Increases 171 | 5 116 50 Destroy 0b10 Robot/C 140 | . 100 40 Destroy 0b10 Robot/NC 5 | 5 . . Destroy Leader 10 | . . 10 Destroy Structure 1 | . 1 . Lose Combat Pursuer 15 | . 15 . Influence Decreases 171 | 5 116 50 Time Decay 171 | 5 116 50 Squads Dispatched 1 | . 1 . Investigation 1 | . 1 . Extermination . | . . . Reinforcement . | . . . Assault . | . . . Garrison . | . . . Intercept . | . . . Searches Triggered . | . . . Construction Impeded . | . . . Haulers Reinforced . | . . . Active Scanning Responses . | . . . Cargo Convoy Interrupts . | . . . Stealth | -11 -10 -10 --------- Run | Yrd Mat Sub Distress Signals 1 | . 1 . Communications Jammed . | . . . Distress Signals . | . . . Times Spotted 30 | . 18 12 Peak Tracking Total 3 | . 3 3 Tactical Retreats 1 | . 1 . Traps | -11 -10 -10 ------- Run | Yrd Mat Sub Traps Triggered . | . . . Indirectly . | . . . Trap Hack Attempts . | . . . Triggered . | . . . Disarmed . | . . . Reprogrammed . | . . . Reused . | . . . Traps Extracted . | . . . Installed . | . . . Triggered . | . . . Machines | -11 -10 -10 ---------- Run | Yrd Mat Sub Machines Disabled 1 | . . 1 Max in Single Turn 1 | . . 1 Machines Repaired . | . . . Machines Dismantled . | . . . Machines Sabotaged . | . . . Overloaded Fab Kills . | . . . Hacking | -11 -10 -10 --------- Run | Yrd Mat Sub Machines Accessed 4 | . 2 2 Terminals 2 | . 2 . Fabricators . | . . . Repair Stations . | . . . Recycling Units . | . . . Scanalyzers . | . . . Garrison Access . | . . . Total Hacks 18 | . 6 12 Successful 12 | . . 12 Failed 6 | . 6 . Catastrophic . | . . . Database Lockouts . | . . . Manual 6 | . 6 . Terminals 6 | . 6 . Fabricators . | . . . Repair Stations . | . . . Recycling Units . | . . . Scanalyzers . | . . . Garrison Access . | . . . Terminal Hacks 12 | . . 12 Record 11 | . . 11 Proto ID Catalog 1 | . . 1 Fabricator Hacks . | . . . Repair Station Hacks . | . . . Recycling Unit Hacks . | . . . Scanalyzer . | . . . Garrison Access Hacks . | . . . Unauthorized Hacks . | . . . Terminals . | . . . Fabricators . | . . . Repair Stations . | . . . Recycling Units . | . . . Scanalyzers . | . . . Garrison Access . | . . . Data Cores Recovered . | . . . Used . | . . . Hacking Detections 2 | . 2 . Full Trace Events . | . . . Feedback Events . | . . . Feedback Blocked . | . . . Robot Schematics Acquired . | . . . Robots Built . | . . . Authchips . | . . . Time . | . . . Total Robot Build Rating . | . . . Part Schematics Acquired . | . . . Parts Built . | . . . Authchips . | . . . Time . | . . . Total Part Build Rating . | . . . Part Studies Acquired . | . . . Parts Repaired . | . . . Time . | . . . Parts Recycled . | . . . Recycled Matter . | . . . Retrieved Matter . | . . . Retrieved Components . | . . . Parts Scanalyzed . | . . . Part Schematics Acquired . | . . . Parts Damaged . | . . . Bothacking | -11 -10 -10 ------------ Run | Yrd Mat Sub Used RIF Installer . | . . . Robots Hacked . | . . . Non-combat . | . . . Combat . | . . . Robot Hacks Applied . | . . . Relay Couplers Released . | . . . Fabnet Peak Effective % . | . . . Robots Rewired . | . . . Allies Hacked . | . . . Hacks Repelled . | . . . Allies | -11 -10 -10 -------- Run | Yrd Mat Sub Total Allies . | . . . Largest Group . | . . . Highest-Rated Group . | . . . Highest-Rated Ally . | . . . Total Orders . | . . . Ally Attacks . | . . . Total Damage . | . . . Kills . | . . . Allies Corrupted . | . . . Allies Melted . | . . . Intel | -11 -10 -10 ------- Run | Yrd Mat Sub Active Infowar (turns) . | . . . Robot Analysis Total . | . . . Derelict Logs Recovered 2 | . . 2 Drone Launches . | . . . Drone Recoveries . | . . . Exploration | -11 -10 -10 ------------- Run | Yrd Mat Sub Turns Passed 3382 | 88 1136 2158 Spaces Moved 1416 | 52 413 951 Core 8 | 8 . . Treads 902 | 44 413 445 Legs . | . . . Wheels 506 | . . 506 Hover . | . . . Flight . | . . . Fastest Speed 50 | 50 160 125 Average Speed 182 | 143 162 193 Slowest Speed 240 | 160 240 240 Overloaded Moves . | . . . Propulsion Burnouts . | . . . Robots Hopped . | . . . Potential Cave-ins . | . . . Cave-ins Triggered . | . . . Exploration Rate (%) 41 | 4 64 55 Regions Visited 2 Branch Regions 1 Pre-discovered Areas 3 | . . 3 Known Exits Taken . | . . . Unknown Exits Taken 2 | 1 1 . Scrap Searched . | . . . Spaces Dug . | . . . Terrain Destroyed 21 | . . 21 Melee . | . . . Projectile . | . . . AOE 21 | . . 21 Terrain Rammed . | . . . Walls Destroyed . | . . . Machines Disabled . | . . . Actions | -11 -10 -10 --------- Run | Yrd Mat Sub Total 2081 | 59 837 1185 Wait 560 | . 392 168 Move 1414 | 51 412 951 Hop . | . . . Pick Up 18 | . 9 9 Fast Attach 10 | 6 1 3 Attach 6 | . . 6 Detach 1 | . . 1 Swap 2 | . 2 . Drop 2 | . 1 1 Fire 68 | 2 20 46 Melee . | . . . Ram . | . . . Kick . | . . . Crush . | . . . Escape Stasis . | . . . Rewire . | . . . Trap . | . . . Miscellaneous . | . . . Route ------- -11/Scrapyard -10/Materials (discovered 4 exits: [*Mat x2] / [*Min] / *Sub) -10/Subcaves (discovered 1 exit: [*Mat]) History --------- Turn | Location | Event 10 | -11/Scrapyard | Discovered new exit (range 13) 89 | -11/Scrapyard | Entered Materials 260 | -10/Materials | Discovered new exit (range 16) 318 | -10/Materials | Build established: Mutant 367 | -10/Materials | Discovered new exit (range 5) 488 | -10/Materials | Discovered new exit (range 5) 611 | -10/Materials | Discovered new exit (range 15) 789 | -10/Materials | Derelicts attacked the area 1225 | -10/Materials | Entered Subcaves 1226 | -10/Subcaves | Approached by a straggling Scientist 1687 | -10/Subcaves | Learned location of Mines (-9) 1894 | -10/Subcaves | Shifting Twisted Machinery released Scrap Shield 1897 | -10/Subcaves | Shifting Twisted Machinery released Barrage Gun 2248 | -10/Subcaves | Visited 4L-MR0's lab 2270 | -10/Subcaves | Found Power Bank 2588 | -10/Subcaves | Core integrity fell below 50% 2612 | -10/Subcaves | Lost 3 parts (1n2w) 2642 | -10/Subcaves | Discovered new exit (range 11) 2825 | -10/Subcaves | A Subdweller sparked back to life 2825 | -10/Subcaves | A Subdweller sparked back to life 2825 | -10/Subcaves | A Subdweller sparked back to life 2839 | -10/Subcaves | Found Rainbow Chip 2897 | -10/Subcaves | Learned Materials stockpile data 2908 | -10/Subcaves | Shifting Twisted Machinery released Spk. Treads 2910 | -10/Subcaves | Shifting Twisted Machinery released Scrap Shield 2928 | -10/Subcaves | Visited Clippyterm 2933 | -10/Subcaves | Learned location of Section 7 (-2) 3043 | -10/Subcaves | Learned location of Zion (-7) 3043 | -10/Subcaves | Met a Zionite searching for "candidates" 3370 | -10/Subcaves | Core integrity fell below 20% 3383 | -10/Subcaves | Destroyed by FI-GWF(R) with Subdweller Laser Last Messages --------------- subatomizers out of the Subcaves, I can warn that doing so is a one-way ticket to summoning unimaginable chaos on any area not hardened against them. That includes... just about anywhere. 02955_ Subatomizers dissect the Sub. Optics. 02985_ Acquired 10 matter. 03026_ KU-AK6(z): "She is not going to be happy we haven't found any suitable candidates yet." 03043_ KU-AK6(z): "Hey you! It's really dangerous down here, I feel that you could die at any moment. For your health and safety might I suggest a trip to Zion?" World map updated: -7/Zion. 03325_ Acquired 4 matter. 03363_ 02-1QJ(R) affixes Scrap Shield Fragment to Scrap Shield. 03374_ 02-1QJ(R) destroyed. 03380_ Dropped Hcp. Storage Unit. Map ----- +----------------------------------------------------+ | #???????????????????????## ####??##"### ???? | | #???????????????????????## # #?????# #??????? | | ???????????????????????## ## ""#????? ??????? | | ????????????????????#### ### "" "???? ?????? | | ???????????????????## #?# #???? ????? | | ???????????????????# ###? ##????? ?????? | | ???????????????????## #??## ## ##?????????????? | | ????????????????????# ##???##??##??????????????? | | ???????????????????## #????????????????????????? | | ??????????????????## ##???????????????????????? | | ??????????????????# #???????????????????????? | | ??????????????????# ##???????????????????????? | | ??????????????????# # ##????????????????????????? | | ??????????????????#### #?????????????????????????? | | ????????????????????## ##????????????????????????? | | ????????????????????# ###??????????????????????? | | ????????????????????# #??????????????????????? | | ????????????????????## ##??????????????????????? | | ?????????????????????## #??????????????????????? | | ??????????????????????# ##?????????????????????? | | ??????????????????????# #?????????????????????? | | ???????????###???????## #?????????????????????? | | ###????##### #?????### =![##????????????????????? | | #??### #????## [!![#????????????????????? | | #### ###### ]&!!##????????????????????? | | ## %@##?????????????????????? | | ## =!###?????? ????????????? | | ## #### #????? #???????????? | | ## ##??## R! ##???? #????????????? | | ###??# %###### #????????????? | | < #??# ## #????????????? | | # #??## #????????????? | | # #### ##???# ## #?????????????? | | ## #??##??## ####! ##?????????????? | | # #?????## #?# ###??????????????? | | ## #?????# #?# % #????????????????? | | ?# ####?## #?#% ### ##????????????????? | | ?# ## ### ###?# %#??# ##?????????????????? | | ## ##??# #??##??????????????????? | | ##?# ?????????????????????? | | #?# ????????????????????? | | # ## ???????????????????? | | # ## ?????????????????? | | # ## # ????????????????? | | # #### # ???????????????? | | ## ###??# ### ######??????????????? | | # ## #??### ## #### #???????????????????? | | ####### #?## ## ## ????##???????????????????? | | ##????###?# #####?????????????????????????? | | ###??????## " #????????????????????????????? | +----------------------------------------------------+ Best States ------------- Heat Dissipation 25 Energy Generation 15 Energy Capacity 250 Matter Stores 300 Matter Capacity 300 Sight Range 16 Terrain Scan Density 10 Armor Coverage 150 Evasion (%) 40 Recoil Reduction 2 Item Schematics ----------------- None Robot Schematics ------------------ None Fabricated ------------ Nothing Repaired ---------- Nothing Studied --------- None Alien Tech Used ----------------- None Achievements -------------- None Challenges ------------ None Game ------ Seed DeliveryPointyFacilitator Manual? 0 Play Time 00:11:34 Cumulative 607.6 hours Start 2026.04.30 @ 13:05:17 End 2026.04.30 @ 13:14:50 Sessions 1 Manual Loads 0 Difficulty Rogue Special Mode None Game No. 934 Rogue 779 Adventurer 148 Explorer 7 Win Type - Total 29 Types 21/1/4/1/0/0/1/0/0/1 Lore% 82 Gallery% 82 Achievement% 76 Wizard Run 0 Options --------- Layout 1 ASCII 0 Keyboard 0 Movement Numpad Keybinds 0 Fullscreen 2 Font 24/Smallcaps Map View 50x35 Zoom Use 0% Tactical HUD 1 Map Filters NONE Filters NONE Steam 1 RUN: 7b71047c-ee45-4a0c-ab7a-78947169378f